fUSD/lending_fUSD_20250120
["ID","MTS","AMOUNT","RATE_DAILY","PERIOD"]
[349632919,1737339042348,-553.59086391,0.000212,2]
[349632921,1737339042357,-508.54530404,0.000212,2]
[349632923,1737339042366,-505.8121377,0.000212,2]
[349632925,1737339042375,-1866.86,0.000212,2]
[349632927,1737339042385,-517.60468813,0.000212,2]
[349632929,1737339042395,-525.92532484,0.000212,2]
[349632931,1737339042405,-526.5804876,0.000212,2]
[349632933,1737339042415,-2866.24,0.000212,2]
[349632935,1737339042424,-500.0,0.000212,2]
[349632937,1737339042433,-500.0,0.000212,2]
[349632939,1737339042443,-523.58733961,0.000212,2]
[349632941,1737339042452,-2958.09,0.000212,2]
[349632943,1737339042462,-530.56390104,0.000212,2]
[349632945,1737339042471,-532.1132432,0.000212,2]
[349632946,1737339042481,-467.03809361,0.000212,2]
[349632948,1737339042490,-512.80483974,0.000212,2]
[349632951,1737339042500,-511.56532692,0.000212,2]
[349632953,1737339042509,-5752.13,0.000212,2]
[349632955,1737339042519,-500.0,0.000212,2]
[349632957,1737339042528,-909.0,0.000212,2]
[349632959,1737339042538,-500.0,0.000212,2]
[349632960,1737339042547,-522.06666684,0.000212,2]
[349632963,1737339042557,-13839.16,0.000212,2]
[349632965,1737339042567,-500.0,0.000212,2]
[349632967,1737339042576,-764.4,0.000212,2]
[349632969,1737339042586,-517.0174676,0.000212,2]
[349632971,1737339042596,-500.0,0.000212,2]
[349632973,1737339042606,-1273.9,0.000212,2]
[349632975,1737339042615,-500.0,0.000212,2]
[349632977,1737339042625,-1206.94,0.000212,2]
[349632978,1737339042634,-500.0,0.000212,2]
[349632980,1737339042644,-500.0,0.000212,2]
[349632982,1737339042654,-500.0,0.000212,2]
[349632984,1737339042663,-509.25,0.000212,2]
[349632986,1737339042673,-500.0,0.000212,2]
[349632988,1737339042682,-193.19108979,0.000212,2]
[349632991,1737339042692,-500.0,0.000212,2]
[349632994,1737339042702,-3010.06,0.000212,2]
[349632997,1737339042711,-568.27209584,0.000212,2]
[349632999,1737339042720,-500.0,0.000212,2]
[349633001,1737339042731,-621.73915712,0.000212,2]
[349633003,1737339042741,-8264.03,0.000212,2]
[349633006,1737339042750,-799.62,0.000212,2]
[349633008,1737339042765,-536.82048561,0.000212,2]
[349633010,1737339042775,-942.98,0.000212,2]
[349633012,1737339042784,-500.0,0.000212,2]
[349633014,1737339042794,-523.95724494,0.000212,2]
[349633016,1737339042803,-94.29819983,0.000212,2]
[349633028,1737339042888,-521.22094936,0.000212,2]
[349633030,1737339042898,-2776.79297069,0.000212,2]
[349633032,1737339042909,-323.171251,0.000212,2]
[349633035,1737339042922,-1918.34577831,0.000212,2]
[349633037,1737339042931,-1725.19,0.000212,2]
[349633040,1737339042940,-1133.71,0.000212,2]
[349633043,1737339042950,-500.0,0.000212,2]
[349633045,1737339042959,-548.28109653,0.000212,2]
[349633047,1737339042968,-6361.89,0.000212,2]
[349633049,1737339042977,-524.2869602,0.000212,2]
[349633051,1737339042987,-500.0,0.000212,2]
[349633053,1737339042997,-1359.48,0.000212,2]
[349633055,1737339043006,-1022.31,0.000212,2]
[349633057,1737339043015,-500.0,0.000212,2]
[349633059,1737339043025,-514.78526483,0.000212,2]
[349633061,1737339043035,-2208.23,0.000212,2]
[349633063,1737339043044,-3372.54,0.000212,2]
[349633065,1737339043053,-990.52,0.000212,2]
[349633067,1737339043062,-500.0,0.000212,2]
[349633069,1737339043071,-2262.93,0.000212,2]
[349633071,1737339043080,-500.0,0.000212,2]
[349633073,1737339043090,-1310.97,0.000212,2]
[349633075,1737339043100,-1176.84,0.000212,2]
[349633077,1737339043109,-500.0,0.000212,2]
[349633079,1737339043118,-1406.12,0.000212,2]
[349633081,1737339043128,-236.69945496,0.000212,2]
[349633083,1737339043137,-500.0,0.000212,2]
[349633085,1737339043146,-500.0,0.000212,2]
[349633087,1737339043156,-1847.59544343,0.00021202,2]
[349633089,1737339043165,-150.83,0.00021231,2]
[349633091,1737339043174,-678.59,0.00021235,2]
[349633093,1737339043184,-318.6427,0.00021275,2]
[349633095,1737339043194,-1847.59544343,0.00021301,2]
[349633097,1737339043204,-904.65,0.00021307,2]
[349633099,1737339043214,-500.0,0.00021374,2]
[349633101,1737339043227,-954.12,0.00021375,2]
[349633103,1737339043236,-1793.05,0.00021375,2]
[349633105,1737339043246,-786.26,0.00021375,2]
[349633107,1737339043257,-727.78,0.00021375,2]
[349633109,1737339043266,-2073.47,0.00021375,2]
[349633111,1737339043276,-539.91,0.00021375,2]
[349633113,1737339043285,-500.0,0.00021375,2]
[349633116,1737339043296,-726.2,0.00021375,2]
[349633117,1737339043306,-639.0,0.00021375,2]
[349633120,1737339043316,-500.0,0.00021375,2]
[349633121,1737339043325,-712.65,0.00021375,2]
[349633124,1737339043335,-500.0,0.00021375,2]
[349633126,1737339043344,-500.0,0.00021375,2]
[349633128,1737339043354,-500.0,0.00021375,2]
[349633130,1737339043363,-500.0,0.00021375,2]
[349633132,1737339043372,-500.0,0.00021375,2]
[349633135,1737339043393,-578.58327935,0.00021375,2]
[349633137,1737339043404,-500.0,0.00021375,2]
[349633139,1737339043415,-589.44,0.00021375,2]
[349633141,1737339043425,-1522.48,0.00021375,2]
[349633143,1737339043435,-1373.63,0.00021375,2]
[349633145,1737339043446,-2880.55,0.00021375,2]
[349633147,1737339043456,-2412.13,0.00021375,2]
[349633150,1737339043466,-2916.46,0.00021375,2]
[349633152,1737339043476,-3066.35,0.00021375,2]
[349633154,1737339043486,-500.0,0.00021375,2]
[349633156,1737339043499,-548.94,0.00021375,2]
[349633158,1737339043509,-745.19,0.00021375,2]
[349633160,1737339043520,-842.95,0.00021375,2]
[349633162,1737339043531,-183.7620615,0.00021375,2]
[349633164,1737339043541,-500.0,0.00021375,2]
[349633166,1737339043551,-500.0,0.00021375,2]
[349633168,1737339043561,-500.0,0.00021375,2]
[349633170,1737339043571,-1410.34,0.00021375,2]
[349633173,1737339043581,-500.0,0.00021375,2]
[349633199,1737339043817,-880.74,0.00021375,2]
[349633202,1737339043833,-1327.01,0.00021375,2]
[349633204,1737339043843,-500.0,0.00021375,2]
[349633206,1737339043853,-203.2799019,0.00021375,2]
[349633208,1737339043862,-2399.07,0.00021375,2]
[349633210,1737339043872,-1639.49,0.00021375,2]
[349633212,1737339043882,-1086.19,0.00021375,2]
[349633214,1737339043891,-500.0,0.00021375,2]
[349633216,1737339043900,-1263.76,0.00021375,2]
[349633218,1737339043909,-597.04,0.00021375,2]
[349633220,1737339043920,-1918.76,0.00021375,2]
[349633221,1737339043930,-1034.73,0.00021375,2]
[349633222,1737339043943,-1014.62,0.00021375,2]
[349633223,1737339043954,-1612.36,0.00021375,2]
[349633224,1737339043963,-500.0,0.00021375,2]
[349633225,1737339043973,-1729.6,0.00021375,2]
[349633226,1737339043982,-1088.36,0.00021375,2]
[349633227,1737339043991,-571.16,0.00021375,2]
[349633228,1737339044001,-1243.87,0.00021375,2]
[349633229,1737339044010,-500.0,0.00021375,2]
[349633230,1737339044020,-2216.28,0.00021375,2]
[349633231,1737339044029,-1294.64,0.00021375,2]
[349633232,1737339044039,-500.0,0.00021375,2]
[349633234,1737339044048,-500.0,0.00021375,2]
[349633236,1737339044058,-500.0,0.00021376,2]
[349633238,1737339044067,-500.0,0.00021376,2]
[349633240,1737339044077,-500.0,0.00021376,2]
[349633242,1737339044086,-654.27,0.00021376,2]
[349633244,1737339044095,-628.58,0.00021376,2]
[349633246,1737339044105,-702.66,0.00021376,2]
[349633248,1737339044114,-500.0,0.00021376,2]
[349633250,1737339044124,-500.0,0.00021376,2]
[349633252,1737339044133,-500.0,0.00021376,2]
[349633254,1737339044142,-500.0,0.00021376,2]
[349633256,1737339044150,-1347.5,0.00021376,2]
[349633258,1737339044160,-500.0,0.00021376,2]
[349633260,1737339044170,-500.0,0.00021376,2]
[349633262,1737339044179,-502.17,0.00021376,2]
[349633264,1737339044188,-500.0,0.00021376,2]
[349633266,1737339044198,-500.0,0.00021376,2]
[349633268,1737339044209,-604.21,0.00021376,2]
[349633270,1737339044220,-500.0,0.00021376,2]
[349633273,1737339044231,-526.32024082,0.00021376,2]
[349633275,1737339044240,-500.0,0.00021376,2]
[349633277,1737339044251,-500.0,0.00021376,2]
[349633279,1737339044260,-500.0,0.00021376,2]
[349633281,1737339044270,-605.45,0.00021376,2]
[349633283,1737339044281,-544.89,0.00021376,2]
[349633285,1737339044302,-506.49164127,0.00021376,2]
[349633287,1737339044312,-522.61539107,0.00021376,2]
[349633289,1737339044321,-192.01320334,0.00021376,2]
[349633291,1737339044330,-500.0,0.00021376,2]
[349633292,1737339044340,-500.0,0.00021376,2]
[349633295,1737339044350,-321.12555296,0.00021376,2]
[349633297,1737339044359,-500.0,0.00021376,2]
[349633299,1737339044369,-500.0,0.00021376,2]
[349633301,1737339044379,-500.0,0.00021376,2]
[349633303,1737339044389,-165.80929104,0.00021376,2]
[349633305,1737339044398,-500.0,0.00021376,2]
[349633307,1737339044410,-500.0,0.00021376,2]
[349633309,1737339044420,-510.96,0.00021376,2]
[349633311,1737339044430,-412.33945152,0.00021376,2]
[349633313,1737339044439,-782.98,0.00021376,2]
[349633315,1737339044448,-1847.59544343,0.00021401,2]
[349633317,1737339044457,-500.0,0.00021473,2]
[349633319,1737339044467,-500.0,0.00021473,2]
[349633321,1737339044476,-3710.49,0.00021473,2]
[349633323,1737339044485,-1542.48,0.00021473,2]
[349633325,1737339044495,-500.0,0.00021473,2]
[349633327,1737339044504,-1771.42,0.00021473,2]
[349633329,1737339044514,-500.0,0.00021473,2]
[349633331,1737339044523,-2481.48,0.00021473,2]
[349633333,1737339044533,-500.0,0.00021473,2]
[349633335,1737339044543,-1663.63,0.00021473,2]
[349633337,1737339044552,-765.05,0.00021473,2]
[349633339,1737339044561,-1453.06,0.00021473,2]
[349633341,1737339044571,-1392.54,0.00021473,2]
[349633343,1737339044580,-4526.19,0.00021473,2]
[349633345,1737339044590,-500.0,0.00021473,2]
[349633347,1737339044600,-2305.1,0.00021473,2]
[349633349,1737339044609,-526.85,0.00021473,2]
[349633351,1737339044620,-1429.6,0.00021473,2]
[349633353,1737339044630,-701.0,0.00021473,2]
[349633355,1737339044639,-1362.13,0.00021473,2]
[349633357,1737339044649,-3424.87,0.00021473,2]
[349633359,1737339044659,-500.0,0.00021473,2]
[349633361,1737339044670,-1824.689101,0.00021473,2]
[349633364,1737339044679,-1443.02,0.00021473,2]
[349633366,1737339044689,-500.0,0.00021473,2]
[349633367,1737339044699,-500.0,0.00021473,2]
[349633370,1737339044709,-4273.65,0.00021473,2]
[349633372,1737339044720,-500.0,0.00021474,2]
[349633374,1737339044730,-500.0,0.00021474,2]
[349633375,1737339044740,-1228.69,0.00021474,2]
[349633377,1737339044750,-917.93,0.00021474,2]
[349633380,1737339044760,-615.09131478,0.00021474,2]
[349633382,1737339044770,-699.67,0.00021474,2]
[349633384,1737339044780,-500.0,0.00021474,2]
[349633386,1737339044809,-500.0,0.00021474,2]
[349633388,1737339044819,-625.41,0.00021474,2]
[349633390,1737339044829,-1374.55,0.00021474,2]
[349633392,1737339044840,-1666.42,0.00021474,2]
[349633394,1737339044849,-614.07,0.00021474,2]
[349633397,1737339044866,-500.0,0.00021474,2]
[349633399,1737339044877,-500.0,0.00021474,2]
[349633401,1737339044887,-500.0,0.00021474,2]
[349633403,1737339044897,-500.0,0.00021474,2]
[349633405,1737339044908,-500.0,0.00021474,2]
[349633407,1737339044918,-1497.25,0.00021474,2]
[349633409,1737339044928,-500.0,0.00021474,2]
[349633411,1737339044938,-500.0,0.00021474,2]
[349633413,1737339044948,-500.0,0.00021474,2]
[349633415,1737339044958,-949.13,0.00021474,2]
[349633417,1737339044968,-524.5,0.00021474,2]
[349633419,1737339044979,-540.09641533,0.00021474,2]
[349633421,1737339044989,-500.0,0.00021474,2]
[349633423,1737339045000,-1502.204827,0.00021474,2]
[349633425,1737339045010,-500.0,0.00021474,2]
[349633427,1737339045020,-839.65,0.00021474,2]
[349633429,1737339045030,-1118.82,0.00021474,2]
[349633431,1737339045041,-183.56278006,0.00021474,2]
[349633434,1737339045052,-500.0,0.00021474,2]
[349633436,1737339045062,-894.12,0.00021474,2]
[349633438,1737339045072,-894.56,0.00021474,2]
[349633440,1737339045082,-500.0,0.00021474,2]
[349633442,1737339045092,-591.66,0.00021474,2]
[349633444,1737339045102,-2119.31,0.00021474,2]
[349633446,1737339045111,-711.95,0.00021474,2]
[349633448,1737339045122,-609.44,0.00021474,2]
[349633450,1737339045131,-500.0,0.00021474,2]
[349633452,1737339045142,-527.00051694,0.00021474,2]
[349633454,1737339045151,-978.46,0.00021474,2]
[349633456,1737339045161,-1492.72,0.00021474,2]
[349633458,1737339045170,-500.0,0.00021474,2]
[349633460,1737339045181,-1644.16,0.00021474,2]
[349633462,1737339045190,-500.0,0.00021474,2]
[349633464,1737339045200,-1854.46,0.00021474,2]
[349633466,1737339045209,-500.0,0.00021474,2]
[349633469,1737339045219,-500.0,0.00021474,2]
[349633471,1737339045231,-618.87111228,0.00021474,2]
[349633473,1737339045241,-2047.77,0.00021474,2]
[349633475,1737339045250,-295.07,0.00021474,2]
[349633476,1737339045261,-1095.23,0.00021474,2]
[349633479,1737339045271,-500.0,0.00021474,2]
[349633481,1737339045281,-1826.38,0.00021474,2]
[349633483,1737339045290,-755.82,0.00021474,2]
[349633485,1737339045316,-500.0,0.00021474,2]
[349633487,1737339045327,-500.0,0.00021474,2]
[349633488,1737339045336,-797.93472332,0.00021474,2]
[349633524,1737339045654,-108.70527668,0.00021474,2]
[349633526,1737339045666,-1106.79,0.00021474,2]
[349633528,1737339045676,-500.0,0.00021474,2]
[349633530,1737339045685,-500.0,0.00021474,2]
[349633532,1737339045694,-2307.5,0.00021474,2]
[349633534,1737339045704,-732.16,0.00021474,2]
[349633537,1737339045713,-2029.85,0.00021474,2]
[349633540,1737339045723,-1429.58,0.00021474,2]
[349633542,1737339045733,-500.0,0.00021474,2]
[349633544,1737339045742,-690.23,0.00021474,2]
[349633546,1737339045751,-500.0,0.00021474,2]
[349633549,1737339045761,-1736.93,0.00021474,2]
[349633551,1737339045771,-597.12,0.00021474,2]
[349633554,1737339045780,-500.0,0.00021474,2]
[349633556,1737339045790,-789.86,0.00021474,2]
[349633558,1737339045805,-1803.0,0.00021474,2]
[349633560,1737339045814,-1983.48,0.00021474,2]
[349633562,1737339045824,-500.0,0.00021474,2]
[349633564,1737339045835,-500.0,0.00021474,2]
[349633566,1737339045844,-1421.85,0.00021474,2]
[349633568,1737339045853,-1383.9,0.00021474,2]
[349633570,1737339045863,-500.0,0.00021474,2]
[349633572,1737339045872,-500.0,0.00021474,2]
[349633574,1737339045882,-500.0,0.00021474,2]
[349633576,1737339045891,-522.1755466,0.00021474,2]
[349633578,1737339045901,-500.0,0.00021474,2]
[349633580,1737339045911,-634.99043884,0.00021474,2]
[349633582,1737339045920,-434.21781775,0.00021474,2]
[349633585,1737339045930,-500.0,0.00021474,2]
[349633587,1737339045940,-500.0,0.00021474,2]
[349633589,1737339045950,-1097.1,0.00021474,2]
[349633591,1737339045959,-656.72,0.00021474,2]
[349633593,1737339045968,-633.84092013,0.00021474,2]
[349633603,1737339046056,-2803.37907987,0.00021474,2]
[349633605,1737339046066,-500.0,0.00021474,2]
[349633607,1737339046075,-500.0,0.00021474,2]
[349633609,1737339046084,-500.0,0.00021474,2]
[349633611,1737339046093,-496.62092013,0.00021474,2]
[349633630,1737339046396,-961.14907987,0.00021474,2]
[349633632,1737339046407,-85.76464939,0.00021474,2]
[349633636,1737339046434,-414.23535061,0.00021474,2]
[349633638,1737339046444,-1937.12,0.00021474,2]
[349633640,1737339046453,-500.0,0.00021474,2]
[349633642,1737339046463,-7882.15,0.00021474,2]
[349633644,1737339046472,-1429.61,0.00021474,2]
[349633646,1737339046482,-9451.31,0.00021474,2]
[349633648,1737339046492,-1135.25,0.00021474,2]
[349633650,1737339046501,-500.0,0.00021474,2]
[349633652,1737339046510,-500.0,0.00021474,2]
[349633654,1737339046520,-500.0,0.00021474,2]
[349633656,1737339046530,-500.0,0.00021474,2]
[349633658,1737339046540,-500.0,0.00021474,2]
[349633659,1737339046552,-500.0,0.00021474,2]
[349633661,1737339046562,-500.0,0.00021474,2]
[349633664,1737339046573,-500.0,0.00021474,2]
[349633666,1737339046583,-1866.86,0.00021474,2]
[349633668,1737339046592,-2866.24,0.00021474,2]
[349633670,1737339046602,-500.0,0.00021474,2]
[349633671,1737339046613,-500.0,0.00021474,2]
[349633673,1737339046623,-2958.09,0.00021474,2]
[349633676,1737339046633,-5752.13,0.00021474,2]
[349633677,1737339046643,-500.0,0.00021474,2]
[349633680,1737339046653,-909.0,0.00021474,2]
[349633682,1737339046663,-500.0,0.00021474,2]
[349633684,1737339046673,-13839.16,0.00021474,2]
[349633685,1737339046682,-500.0,0.00021474,2]
[349633688,1737339046692,-764.4,0.00021474,2]
[349633690,1737339046702,-500.0,0.00021474,2]
[349633692,1737339046712,-1273.9,0.00021474,2]
[349633694,1737339046722,-500.0,0.00021474,2]
[349633696,1737339046732,-1206.94,0.00021474,2]
[349633698,1737339046742,-500.0,0.00021474,2]
[349633700,1737339046752,-500.0,0.00021474,2]
[349633702,1737339046762,-500.0,0.00021474,2]
[349633704,1737339046773,-509.25,0.00021474,2]
[349633706,1737339046782,-500.0,0.00021474,2]
[349633708,1737339046793,-500.0,0.00021474,2]
[349633710,1737339046805,-3010.06,0.00021474,2]
[349633712,1737339046815,-500.0,0.00021474,2]
[349633714,1737339046825,-8264.03,0.00021474,2]
[349633716,1737339046835,-799.62,0.00021474,2]
[349633718,1737339046846,-942.98,0.00021474,2]
[349633721,1737339046858,-500.0,0.00021474,2]
[349633722,1737339046868,-5018.31,0.00021474,2]
[349633725,1737339046878,-1725.19,0.00021474,2]
[349633727,1737339046889,-1133.71,0.00021474,2]
[349633729,1737339046899,-500.0,0.00021474,2]
[349633730,1737339046909,-6361.89,0.00021474,2]
[349633733,1737339046919,-316.61708942,0.00021474,2]
[349633735,1737339046929,-1359.48,0.00021474,2]
[349633737,1737339046939,-1022.31,0.00021474,2]
[349633739,1737339046948,-2208.23,0.00021474,2]
[349633741,1737339046958,-3372.54,0.00021474,2]
[349633743,1737339046968,-990.52,0.00021474,2]
[349633745,1737339046978,-500.0,0.00021474,2]
[349633747,1737339046988,-2262.93,0.00021474,2]
[349633749,1737339046998,-500.0,0.00021474,2]
[349633751,1737339047008,-1310.97,0.00021474,2]
[349633753,1737339047017,-1176.84,0.00021474,2]
[349633755,1737339047027,-500.0,0.00021474,2]
[349633757,1737339047036,-1406.12,0.00021474,2]
[349633759,1737339047047,-500.0,0.00021474,2]
[349633761,1737339047057,-500.0,0.00021474,2]
[349633763,1737339047067,-1847.59544343,0.00021501,2]
[349633765,1737339047077,-5000.0,0.00021549,2]
[349633767,1737339047088,-270.2551,0.00021549,2]
[349633769,1737339047099,-1847.59544343,0.00021601,2]
[349633771,1737339047109,-166.62391785,0.00021636,2]
[349633773,1737339047119,-1793.05,0.00021649,2]
[349633775,1737339047129,-786.26,0.00021649,2]
[349633777,1737339047138,-727.78,0.00021649,2]
[349633779,1737339047149,-2073.47,0.00021649,2]
[349633781,1737339047159,-539.91,0.00021649,2]
[349633783,1737339047169,-500.0,0.00021649,2]
[349633785,1737339047179,-726.2,0.00021649,2]
[349633787,1737339047188,-639.0,0.00021649,2]
[349633789,1737339047198,-500.0,0.00021649,2]
[349633791,1737339047209,-712.65,0.00021649,2]
[349633793,1737339047223,-500.0,0.00021649,2]
[349633795,1737339047233,-500.0,0.00021649,2]
[349633798,1737339047244,-500.0,0.00021649,2]
[349633800,1737339047255,-500.0,0.00021649,2]
[349633801,1737339047265,-500.0,0.00021649,2]
[349633804,1737339047276,-500.0,0.00021649,2]
[349633807,1737339047286,-589.44,0.00021649,2]
[349633809,1737339047298,-1522.48,0.00021649,2]
[349633812,1737339047307,-1373.63,0.00021649,2]
[349633814,1737339047318,-2880.55,0.00021649,2]
[349633816,1737339047327,-2412.13,0.00021649,2]
[349633818,1737339047338,-2916.46,0.00021649,2]
[349633820,1737339047347,-3066.35,0.00021649,2]
[349633822,1737339047358,-500.0,0.00021649,2]
[349633824,1737339047368,-548.94,0.00021649,2]
[349633826,1737339047379,-745.19,0.00021649,2]
[349633828,1737339047390,-842.95,0.00021649,2]
[349633830,1737339047400,-500.0,0.00021649,2]
[349633832,1737339047410,-500.0,0.00021649,2]
[349633834,1737339047420,-500.0,0.00021649,2]
[349633836,1737339047430,-1410.34,0.00021649,2]
[349633838,1737339047440,-500.0,0.00021649,2]
[349633841,1737339047452,-880.74,0.00021649,2]
[349633843,1737339047461,-1327.01,0.00021649,2]
[349633845,1737339047472,-517.60488057,0.00021649,2]
[349633847,1737339047482,-2399.07,0.00021649,2]
[349633849,1737339047492,-1639.49,0.00021649,2]
[349633851,1737339047502,-1086.19,0.00021649,2]
[349633853,1737339047512,-500.0,0.00021649,2]
[349633855,1737339047523,-1263.76,0.00021649,2]
[349633857,1737339047532,-597.04,0.00021649,2]
[349633859,1737339047542,-1918.76,0.00021649,2]
[349633861,1737339047556,-1034.73,0.00021649,2]
[349633863,1737339047567,-1014.62,0.00021649,2]
[349633866,1737339047578,-1612.36,0.00021649,2]
[349633868,1737339047588,-500.0,0.00021649,2]
[349633870,1737339047598,-1729.6,0.00021649,2]
[349633872,1737339047608,-1088.36,0.00021649,2]
[349633874,1737339047618,-571.16,0.00021649,2]
[349633876,1737339047628,-1243.87,0.00021649,2]
[349633878,1737339047638,-500.0,0.00021649,2]
[349633880,1737339047649,-2216.28,0.00021649,2]
[349633882,1737339047659,-1294.64,0.00021649,2]
[349633884,1737339047669,-500.0,0.00021649,2]
[349633886,1737339047679,-432.46254725,0.00021649,2]
[349633888,1737339047689,-500.0,0.0002165,2]
[349633890,1737339047698,-500.0,0.0002165,2]
[349633892,1737339047708,-500.0,0.0002165,2]
[349633894,1737339047720,-654.27,0.0002165,2]
[349633896,1737339047729,-628.58,0.0002165,2]
[349633898,1737339047739,-702.66,0.0002165,2]
[349633901,1737339047750,-500.0,0.0002165,2]
[349633903,1737339047760,-500.0,0.0002165,2]
[349633905,1737339047771,-500.0,0.0002165,2]
[349633907,1737339047781,-500.0,0.0002165,2]
[349633909,1737339047790,-1347.5,0.0002165,2]
[349633911,1737339047802,-500.0,0.0002165,2]
[349633913,1737339047812,-500.0,0.0002165,2]
[349633915,1737339047822,-502.17,0.0002165,2]
[349633918,1737339047837,-500.0,0.0002165,2]
[349633920,1737339047847,-500.0,0.0002165,2]
[349633922,1737339047858,-604.21,0.0002165,2]
[349633924,1737339047868,-500.0,0.0002165,2]
[349633926,1737339047878,-500.0,0.0002165,2]
[349633928,1737339047888,-500.0,0.0002165,2]
[349633930,1737339047898,-500.0,0.0002165,2]
[349633932,1737339047908,-605.45,0.0002165,2]
[349633934,1737339047918,-544.89,0.0002165,2]
[349633936,1737339047928,-500.0,0.0002165,2]
[349633938,1737339047938,-500.0,0.0002165,2]
[349633940,1737339047948,-500.0,0.0002165,2]
[349633942,1737339047958,-500.0,0.0002165,2]
[349633944,1737339047968,-269.79428873,0.0002165,2]
[349633946,1737339047979,-500.0,0.0002165,2]
[349633948,1737339047990,-500.0,0.0002165,2]
[349633950,1737339048000,-510.96,0.0002165,2]
[349633952,1737339048010,-782.98,0.0002165,2]
[349633954,1737339048020,-131870.92635125,0.0002167,2]
[349633956,1737339048030,-1847.59544343,0.000217,2]
[349633958,1737339048042,-177.73576252,0.00021727,2]
[349633960,1737339048055,-182.13,0.00021734,2]
[349633963,1737339048066,-150.0,0.0002174,2]
[349633965,1737339048076,-150.0,0.00021741,2]
[349633967,1737339048086,-500.0,0.00021747,2]
[349633969,1737339048096,-500.0,0.00021747,2]
[349633971,1737339048106,-3710.49,0.00021747,2]
[349633973,1737339048117,-1542.48,0.00021747,2]
[349633975,1737339048127,-500.0,0.00021747,2]
[349633977,1737339048137,-1771.42,0.00021747,2]
[349633979,1737339048147,-500.0,0.00021747,2]
[349633981,1737339048158,-2481.48,0.00021747,2]
[349633983,1737339048167,-500.0,0.00021747,2]
[349633985,1737339048179,-1663.63,0.00021747,2]
[349633987,1737339048189,-765.05,0.00021747,2]
[349633989,1737339048200,-1453.06,0.00021747,2]
[349633991,1737339048212,-1392.54,0.00021747,2]
[349633993,1737339048226,-4526.19,0.00021747,2]
[349633995,1737339048236,-390.03080344,0.00021747,2]
[349633997,1737339048247,-2305.1,0.00021747,2]
[349633999,1737339048258,-526.85,0.00021747,2]
[349634001,1737339048269,-1429.6,0.00021747,2]
[349634003,1737339048280,-701.0,0.00021747,2]
[349634005,1737339048290,-1362.13,0.00021747,2]
[349634007,1737339048300,-3424.87,0.00021747,2]
[349634009,1737339048310,-500.0,0.00021747,2]
[349634010,1737339048322,-1824.689101,0.00021747,2]
[349634011,1737339048334,-1443.02,0.00021747,2]
[349634012,1737339048345,-500.0,0.00021747,2]
[349634013,1737339048357,-500.0,0.00021747,2]
[349634014,1737339048369,-4273.65,0.00021747,2]
[349634015,1737339048380,-500.0,0.00021748,2]
[349634016,1737339048391,-500.0,0.00021748,2]
[349634017,1737339048403,-1228.69,0.00021748,2]
[349634018,1737339048414,-917.93,0.00021748,2]
[349634019,1737339048425,-699.67,0.00021748,2]